[Event "*** Titled Tuesday Blitz"]
[Site "Chess.com"]
[Date "2020.04.28"]
[Round "7"]
[White "RaphaeI"]
[Black "Pomegranate988"]
[Result "0-1"]
[WhiteElo "2624"]
[BlackElo "2483"]
[TimeControl "180+1"]
[EndTime "11:18:28 PDT"]
[Termination "Pomegranate988 won on time"]

1. Nf3 {[%clk 0:03:00.9]} 1... g6 {[%clk 0:02:58.9]} 2. d4 {[%clk 0:02:58.9]}
2... Bg7 {[%clk 0:02:59.1]} 3. c4 {[%clk 0:02:56.4]} 3... Nf6 {[%clk 0:02:59.1]}
4. Nc3 {[%clk 0:02:56.2]} 4... d5 {[%clk 0:02:59.3]} 5. cxd5 {[%clk 0:02:43]}
5... Nxd5 {[%clk 0:02:59]} 6. e4 {[%clk 0:02:43.9]} 6... Nxc3 {[%clk 0:02:59.4]}
7. bxc3 {[%clk 0:02:44.8]} 7... c5 {[%clk 0:02:59.8]} 8. Be3 {[%clk 0:02:45.2]}
8... O-O {[%clk 0:02:52.1]} 9. Qd2 {[%clk 0:02:39.4]} 9... b6 {[%clk 0:02:43.5]}
10. Bd3 {[%clk 0:02:25.6]} 10... Nc6 {[%clk 0:02:40.8]} 11. d5 {[%clk 0:02:22]}
11... Na5 {[%clk 0:02:39.4]} 12. Rd1 {[%clk 0:02:17.4]} 12... Bg4 {[%clk
0:02:30.7]} 13. c4 {[%clk 0:02:05.3]} 13... e5 {[%clk 0:02:29]} 14. h3 {[%clk
0:01:43.5]} 14... Bxf3 {[%clk 0:02:27.2]} 15. gxf3 {[%clk 0:01:44.4]} 15... f5
{[%clk 0:02:15.6]} 16. exf5 {[%clk 0:01:30.5]} 16... gxf5 {[%clk 0:02:16.5]} 17.
Bg5 {[%clk 0:01:30.4]} 17... Qe8 {[%clk 0:02:10.5]} 18. Rg1 {[%clk 0:01:21.7]}
18... Kh8 {[%clk 0:02:04.4]} 19. Bh6 {[%clk 0:01:07.6]} 19... Bxh6 {[%clk
0:01:58.5]} 20. Qxh6 {[%clk 0:01:08.5]} 20... Qe7 {[%clk 0:01:58.6]} 21. Rg6
{[%clk 0:00:35.5]} 21... Rae8 {[%clk 0:01:27.5]} 22. Kf1 {[%clk 0:00:35.7]}
22... Nb7 {[%clk 0:00:41.1]} 23. Re1 {[%clk 0:00:32.9]} 23... Nd8 {[%clk
0:00:39.3]} 24. Rg5 {[%clk 0:00:31]} 24... Rf6 {[%clk 0:00:33.7]} 25. Qh5 {[%clk
0:00:26.5]} 25... Ref8 {[%clk 0:00:32.9]} 26. Rxf5 {[%clk 0:00:17]} 26... Rxf5
{[%clk 0:00:31.1]} 27. Bxf5 {[%clk 0:00:17.9]} 27... Qf7 {[%clk 0:00:25]} 28.
Qxf7 {[%clk 0:00:11.7]} 28... Nxf7 {[%clk 0:00:25.9]} 29. Be6 {[%clk 0:00:11.3]}
29... Nd6 {[%clk 0:00:24.6]} 30. Rxe5 {[%clk 0:00:11.3]} 30... Nxc4 {[%clk
0:00:24.8]} 31. Re4 {[%clk 0:00:07.9]} 31... Nd6 {[%clk 0:00:25.2]} 32. Re3
{[%clk 0:00:06.2]} 32... c4 {[%clk 0:00:25.3]} 33. Bd7 {[%clk 0:00:04.6]} 33...
Rd8 {[%clk 0:00:23.7]} 34. Bc6 {[%clk 0:00:03.3]} 34... b5 {[%clk 0:00:23.5]}
35. a3 {[%clk 0:00:02.5]} 35... a5 {[%clk 0:00:23.1]} 36. Ke2 {[%clk 0:00:02.3]}
36... b4 {[%clk 0:00:23]} 37. Kd2 {[%clk 0:00:01.2]} 37... c3+ {[%clk
0:00:19.8]} 38. Kc2 {[%clk 0:00:01.6]} 38... Nc4 {[%clk 0:00:18.2]} 0-1

[Event "*** Titled Tuesday Blitz"]
[Site "Chess.com"]
[Date "2020.04.28"]
[Round "7"]
[White "DDTerziev04"]
[Black "Volovier"]
[Result "0-1"]
[WhiteElo "2345"]
[BlackElo "2627"]
[TimeControl "180+1"]
[EndTime "11:18:30 PDT"]
[Termination "Volovier won on time"]

1. e4 {[%clk 0:03:00.9]} 1... c5 {[%clk 0:02:57.2]} 2. Nf3 {[%clk 0:03:00.5]}
2... d6 {[%clk 0:02:56.8]} 3. d4 {[%clk 0:03:00.1]} 3... cxd4 {[%clk 0:02:57.7]}
4. Qxd4 {[%clk 0:03:00.8]} 4... Nc6 {[%clk 0:02:55.2]} 5. Qe3 {[%clk 0:03:00.6]}
5... g6 {[%clk 0:02:53.8]} 6. c4 {[%clk 0:02:58.1]} 6... Bg7 {[%clk 0:02:53.5]}
7. Be2 {[%clk 0:02:57]} 7... Nf6 {[%clk 0:02:52.4]} 8. O-O {[%clk 0:02:56.2]}
8... O-O {[%clk 0:02:52.6]} 9. h3 {[%clk 0:02:53.6]} 9... h6 {[%clk 0:02:49.1]}
10. Rd1 {[%clk 0:02:53]} 10... Qc7 {[%clk 0:02:47]} 11. Nc3 {[%clk 0:02:51.1]}
11... a6 {[%clk 0:02:44.2]} 12. Rb1 {[%clk 0:02:49.8]} 12... b6 {[%clk
0:02:40.8]} 13. b3 {[%clk 0:02:48.5]} 13... Bb7 {[%clk 0:02:38.8]} 14. Bb2
{[%clk 0:02:46.6]} 14... Rfd8 {[%clk 0:02:35.1]} 15. Rd2 {[%clk 0:02:44.3]}
15... Ne5 {[%clk 0:02:33.3]} 16. Rbd1 {[%clk 0:02:42.7]} 16... Nxf3+ {[%clk
0:02:31.3]} 17. Bxf3 {[%clk 0:02:42.3]} 17... Nd7 {[%clk 0:02:30.6]} 18. Be2
{[%clk 0:02:33.6]} 18... Ne5 {[%clk 0:02:28.3]} 19. f4 {[%clk 0:02:29]} 19...
Nd7 {[%clk 0:02:22.9]} 20. Nd5 {[%clk 0:02:22.9]} 20... Bxd5 {[%clk 0:02:19.5]}
21. exd5 {[%clk 0:02:23.8]} 21... Bxb2 {[%clk 0:02:15.9]} 22. Rxb2 {[%clk
0:02:23.6]} 22... Qc5 {[%clk 0:02:11.6]} 23. Qxc5 {[%clk 0:02:17.2]} 23... Nxc5
{[%clk 0:02:08.4]} 24. Bf1 {[%clk 0:01:56.3]} 24... Kg7 {[%clk 0:02:05.2]} 25.
Re1 {[%clk 0:01:55.4]} 25... Kf6 {[%clk 0:02:03.5]} 26. g4 {[%clk 0:01:52.4]}
26... a5 {[%clk 0:02:01.6]} 27. a4 {[%clk 0:01:49.7]} 27... Re8 {[%clk
0:01:58.6]} 28. Bg2 {[%clk 0:01:48.2]} 28... e5 {[%clk 0:01:54]} 29. dxe6 {[%clk
0:01:47]} 29... Rab8 {[%clk 0:01:48.2]} 30. Rd1 {[%clk 0:01:25.2]} 30... Kxe6
{[%clk 0:01:45.2]} 31. Bc6 {[%clk 0:01:17.2]} 31... Red8 {[%clk 0:01:44.6]} 32.
Bd5+ {[%clk 0:01:16.4]} 32... Kf6 {[%clk 0:01:42.6]} 33. Kf2 {[%clk 0:01:06.5]}
33... Ne6 {[%clk 0:01:38.1]} 34. Bxe6 {[%clk 0:00:56.2]} 34... fxe6 {[%clk
0:01:39]} 35. Rbd2 {[%clk 0:00:55.6]} 35... d5 {[%clk 0:01:38.1]} 36. cxd5
{[%clk 0:00:53.8]} 36... b5 {[%clk 0:01:35.9]} 37. axb5 {[%clk 0:00:40.8]} 37...
Rxb5 {[%clk 0:01:34.3]} 38. d6 {[%clk 0:00:39.7]} 38... Rxb3 {[%clk 0:01:33.2]}
39. Kg2 {[%clk 0:00:38.6]} 39... a4 {[%clk 0:01:31.6]} 40. Rd4 {[%clk
0:00:38.4]} 40... a3 {[%clk 0:01:29.9]} 41. Ra4 {[%clk 0:00:37.3]} 41... Rb2+
{[%clk 0:01:30]} 42. Kg3 {[%clk 0:00:33.1]} 42... Rb3+ {[%clk 0:01:27.9]} 43.
Kg2 {[%clk 0:00:32.6]} 43... g5 {[%clk 0:01:28.5]} 44. fxg5+ {[%clk 0:00:30.4]}
44... hxg5 {[%clk 0:01:27.3]} 45. d7 {[%clk 0:00:27.9]} 45... Rb2+ {[%clk
0:01:25.4]} 46. Kg3 {[%clk 0:00:26.2]} 46... a2 {[%clk 0:01:26.3]} 47. Rd3
{[%clk 0:00:14.5]} 47... Re2 {[%clk 0:01:23.6]} 48. Rf3+ {[%clk 0:00:13.5]}
48... Ke7 {[%clk 0:01:21]} 49. Rd3 {[%clk 0:00:10.8]} 49... Rxd7 {[%clk
0:01:18.9]} 50. Rxd7+ {[%clk 0:00:05.8]} 50... Kxd7 {[%clk 0:01:19.8]} 51. Kf3
{[%clk 0:00:06.1]} 51... Rc2 {[%clk 0:01:18.9]} 52. Ke3 {[%clk 0:00:05.7]} 52...
Kc6 {[%clk 0:01:17.5]} 53. Kd3 {[%clk 0:00:04.3]} 53... Rh2 {[%clk 0:01:17.2]}
54. Kc4 {[%clk 0:00:02.2]} 54... e5 {[%clk 0:01:15.6]} 55. Ra6+ {[%clk
0:00:01.8]} 55... Kb7 {[%clk 0:01:15]} 56. Ra3 {[%clk 0:00:01.6]} 56... e4
{[%clk 0:01:13.4]} 57. Kd4 {[%clk 0:00:01]} 57... e3 {[%clk 0:01:13]} 0-1

[Event "*** Titled Tuesday Blitz"]
[Site "Chess.com"]
[Date "2020.04.28"]
[Round "7"]
[White "Gromes7"]
[Black "Embrujada"]
[Result "0-1"]
[WhiteElo "2144"]
[BlackElo "2458"]
[TimeControl "180+1"]
[EndTime "11:18:30 PDT"]
[Termination "Embrujada won by checkmate"]

1. e4 {[%clk 0:03:00.9]} 1... c5 {[%clk 0:02:59.1]} 2. Nf3 {[%clk 0:03:00.8]}
2... e6 {[%clk 0:02:59.6]} 3. d4 {[%clk 0:02:59.8]} 3... cxd4 {[%clk 0:02:59.9]}
4. Nxd4 {[%clk 0:03:00.7]} 4... a6 {[%clk 0:03:00.6]} 5. a3 {[%clk 0:02:57.6]}
5... Nf6 {[%clk 0:02:56.4]} 6. Bd3 {[%clk 0:02:57.3]} 6... b5 {[%clk 0:02:54]}
7. O-O {[%clk 0:02:55.8]} 7... Bb7 {[%clk 0:02:54.2]} 8. Re1 {[%clk 0:02:55]}
8... Bc5 {[%clk 0:02:52.8]} 9. Nb3 {[%clk 0:02:50]} 9... Bb6 {[%clk 0:02:48.8]}
10. Nc3 {[%clk 0:02:41.7]} 10... d6 {[%clk 0:02:30.8]} 11. Be3 {[%clk
0:02:36.3]} 11... Nbd7 {[%clk 0:02:28.3]} 12. Qd2 {[%clk 0:02:25.2]} 12... Ne5
{[%clk 0:02:26.7]} 13. h3 {[%clk 0:02:12.9]} 13... Nc4 {[%clk 0:02:15.6]} 14.
Bxc4 {[%clk 0:02:09.2]} 14... bxc4 {[%clk 0:02:15.8]} 15. Bxb6 {[%clk 0:01:47]}
15... Qxb6 {[%clk 0:02:15.3]} 16. Qd4 {[%clk 0:01:46.2]} 16... Qc7 {[%clk
0:02:07.6]} 17. Nd2 {[%clk 0:01:43.8]} 17... Rc8 {[%clk 0:02:07.6]} 18. Rad1
{[%clk 0:01:16.6]} 18... O-O {[%clk 0:02:02.3]} 19. Nf3 {[%clk 0:01:07]} 19...
Rfd8 {[%clk 0:02:00.8]} 20. Rd2 {[%clk 0:00:53.2]} 20... d5 {[%clk 0:01:47.5]}
21. exd5 {[%clk 0:00:45.9]} 21... Nxd5 {[%clk 0:01:45]} 22. Nxd5 {[%clk
0:00:45.8]} 22... Bxd5 {[%clk 0:01:41.7]} 23. Qc3 {[%clk 0:00:41.9]} 23... Bxf3
{[%clk 0:01:07.7]} 24. Rxd8+ {[%clk 0:00:40.8]} 24... Rxd8 {[%clk 0:01:06.4]}
25. Qxf3 {[%clk 0:00:41.3]} 25... h6 {[%clk 0:01:04.3]} 26. Rd1 {[%clk
0:00:40.3]} 26... Rb8 {[%clk 0:01:04.4]} 27. Qc3 {[%clk 0:00:38.3]} 27... Rb5
{[%clk 0:01:01.3]} 28. Rd4 {[%clk 0:00:37.4]} 28... Rc5 {[%clk 0:01:01.4]} 29.
Qd2 {[%clk 0:00:30.3]} 29... Rb5 {[%clk 0:00:43.7]} 30. c3 {[%clk 0:00:28.8]}
30... Rb8 {[%clk 0:00:35.3]} 31. Rd7 {[%clk 0:00:27.8]} 31... Qb6 {[%clk
0:00:34.9]} 32. Qf4 {[%clk 0:00:21.5]} 32... Rf8 {[%clk 0:00:28.7]} 33. Qxc4
{[%clk 0:00:20.5]} 33... Qxb2 {[%clk 0:00:28]} 34. Qxa6 {[%clk 0:00:20.2]} 34...
Qc1+ {[%clk 0:00:27.3]} 35. Kh2 {[%clk 0:00:19]} 35... Qxc3 {[%clk 0:00:24]} 36.
Qa7 {[%clk 0:00:18.6]} 36... Qe5+ {[%clk 0:00:22.4]} 37. Kg1 {[%clk 0:00:18.1]}
37... Qf4 {[%clk 0:00:22.4]} 38. a4 {[%clk 0:00:17.7]} 38... Rc8 {[%clk
0:00:21.9]} 39. g3 {[%clk 0:00:11.5]} 39... Rc1+ {[%clk 0:00:20.8]} 40. Kg2
{[%clk 0:00:11.8]} 40... Qe4+ {[%clk 0:00:21.1]} 41. f3 {[%clk 0:00:12.1]} 41...
Rc2+ {[%clk 0:00:20.5]} 42. Kh1 {[%clk 0:00:09.4]} 42... Qxf3+ {[%clk
0:00:20.5]} 43. Kg1 {[%clk 0:00:08.6]} 43... Qg2# {[%clk 0:00:20.8]} 0-1

[Event "*** Titled Tuesday Blitz"]
[Site "Chess.com"]
[Date "2020.04.28"]
[Round "7"]
[White "robertofabregas"]
[Black "WiktoriaPOL"]
[Result "0-1"]
[WhiteElo "2091"]
[BlackElo "2034"]
[TimeControl "180+1"]
[EndTime "11:18:31 PDT"]
[Termination "WiktoriaPOL won by resignation"]

1. d4 {[%clk 0:03:00.9]} 1... Nf6 {[%clk 0:02:58.5]} 2. Bf4 {[%clk 0:03:01.3]}
2... d5 {[%clk 0:02:55.9]} 3. e3 {[%clk 0:03:01.6]} 3... c5 {[%clk 0:02:55.4]}
4. c3 {[%clk 0:03:01.3]} 4... Nc6 {[%clk 0:02:53.4]} 5. Nd2 {[%clk 0:03:00.6]}
5... Qb6 {[%clk 0:02:50.3]} 6. Qb3 {[%clk 0:02:59.6]} 6... c4 {[%clk 0:02:46.1]}
7. Qxb6 {[%clk 0:02:59.8]} 7... axb6 {[%clk 0:02:45.2]} 8. a3 {[%clk 0:03:00.1]}
8... b5 {[%clk 0:02:44.1]} 9. Ngf3 {[%clk 0:02:53.5]} 9... b4 {[%clk 0:02:36.9]}
10. cxb4 {[%clk 0:02:54.4]} 10... Nxb4 {[%clk 0:02:36.7]} 11. Rc1 {[%clk
0:02:54.5]} 11... Nc6 {[%clk 0:02:30.5]} 12. Be2 {[%clk 0:02:43.6]} 12... Bf5
{[%clk 0:02:29.2]} 13. O-O {[%clk 0:02:42.5]} 13... e6 {[%clk 0:02:28.2]} 14.
Nh4 {[%clk 0:02:33]} 14... Bg6 {[%clk 0:02:24.5]} 15. Nxg6 {[%clk 0:02:30.1]}
15... hxg6 {[%clk 0:02:22.6]} 16. Nb1 {[%clk 0:02:26.5]} 16... Na5 {[%clk
0:02:11.2]} 17. f3 {[%clk 0:02:10.4]} 17... Nb3 {[%clk 0:02:08]} 18. Rc3 {[%clk
0:02:09]} 18... Be7 {[%clk 0:01:57]} 19. Bd1 {[%clk 0:01:58.6]} 19... Na5 {[%clk
0:01:50.7]} 20. Ba4+ {[%clk 0:01:56.4]} 20... Kd8 {[%clk 0:01:41.6]} 21. Bc2
{[%clk 0:01:43.9]} 21... b5 {[%clk 0:01:30.8]} 22. b4 {[%clk 0:01:16.3]} 22...
cxb3 {[%clk 0:00:58.9]} 23. Bxb3 {[%clk 0:01:15.5]} 23... Nc4 {[%clk 0:00:52.7]}
24. Bxc4 {[%clk 0:01:07.1]} 24... bxc4 {[%clk 0:00:46.8]} 25. Rf2 {[%clk
0:00:37.5]} 25... Kd7 {[%clk 0:00:41.8]} 26. Ra2 {[%clk 0:00:36.9]} 26... Nh5
{[%clk 0:00:39.1]} 27. Be5 {[%clk 0:00:30.4]} 27... f6 {[%clk 0:00:37.3]} 28.
Bg3 {[%clk 0:00:26.8]} 28... Nxg3 {[%clk 0:00:36.9]} 29. hxg3 {[%clk 0:00:27.7]}
29... Rhb8 {[%clk 0:00:36.4]} 30. Nd2 {[%clk 0:00:25.8]} 30... Bb4 {[%clk
0:00:30.2]} 31. Rcc2 {[%clk 0:00:20.5]} 31... Bxa3 {[%clk 0:00:23.4]} 32. e4
{[%clk 0:00:20.9]} 32... Bb4 {[%clk 0:00:18.5]} 33. exd5 {[%clk 0:00:16.6]}
33... exd5 {[%clk 0:00:18.1]} 34. Kf2 {[%clk 0:00:13.8]} 34... Bxd2 {[%clk
0:00:17.1]} 35. Rxd2 {[%clk 0:00:13.6]} 35... Rxa2 {[%clk 0:00:14.2]} 36. Rxa2
{[%clk 0:00:14.5]} 36... Rb7 {[%clk 0:00:14.7]} 37. Ke3 {[%clk 0:00:14]} 37...
Rb3+ {[%clk 0:00:12.2]} 38. Kd2 {[%clk 0:00:12.9]} 38... Rd3+ {[%clk 0:00:11.6]}
39. Ke2 {[%clk 0:00:12.3]} 39... Rxd4 {[%clk 0:00:11.8]} 40. Rd2 {[%clk
0:00:12.8]} 40... Rxd2+ {[%clk 0:00:11.6]} 41. Kxd2 {[%clk 0:00:13.7]} 41... Kc6
{[%clk 0:00:12]} 0-1

[Event "*** Titled Tuesday Blitz"]
[Site "Chess.com"]
[Date "2020.04.28"]
[Round "7"]
[White "Munkhzul_Turmunkh"]
[Black "Sethu0025"]
[Result "0-1"]
[WhiteElo "2515"]
[BlackElo "2816"]
[TimeControl "180+1"]
[EndTime "11:18:32 PDT"]
[Termination "Sethu0025 won by resignation"]

1. e4 {[%clk 0:03:00.9]} 1... g6 {[%clk 0:03:00.9]} 2. d4 {[%clk 0:03:00.4]}
2... Bg7 {[%clk 0:03:01.3]} 3. Nc3 {[%clk 0:03:00]} 3... a6 {[%clk 0:03:02]} 4.
a4 {[%clk 0:02:58.2]} 4... d6 {[%clk 0:03:01.7]} 5. Nf3 {[%clk 0:02:56.8]} 5...
Nf6 {[%clk 0:03:01.4]} 6. Be2 {[%clk 0:02:56.5]} 6... O-O {[%clk 0:03:01.1]} 7.
O-O {[%clk 0:02:56.3]} 7... Nc6 {[%clk 0:03:01.5]} 8. h3 {[%clk 0:02:55.4]} 8...
e5 {[%clk 0:03:01.2]} 9. Be3 {[%clk 0:02:53.7]} 9... exd4 {[%clk 0:02:59.8]} 10.
Nxd4 {[%clk 0:02:53.4]} 10... Re8 {[%clk 0:03:00.5]} 11. Nxc6 {[%clk 0:02:50.3]}
11... bxc6 {[%clk 0:03:00.6]} 12. f3 {[%clk 0:02:47.1]} 12... Be6 {[%clk
0:02:55.5]} 13. Qd2 {[%clk 0:02:46.4]} 13... Nd7 {[%clk 0:02:51.4]} 14. Bd4
{[%clk 0:02:43.5]} 14... Bxd4+ {[%clk 0:02:48.6]} 15. Qxd4 {[%clk 0:02:44.4]}
15... c5 {[%clk 0:02:47.3]} 16. Qd2 {[%clk 0:02:42.8]} 16... Qf6 {[%clk
0:02:47.1]} 17. Rfd1 {[%clk 0:02:39.9]} 17... g5 {[%clk 0:02:44]} 18. Nd5 {[%clk
0:02:16.8]} 18... Bxd5 {[%clk 0:02:41.5]} 19. Qxd5 {[%clk 0:02:17.7]} 19... Ne5
{[%clk 0:02:40.4]} 20. c3 {[%clk 0:02:10.8]} 20... Rab8 {[%clk 0:02:33.8]} 21.
Rab1 {[%clk 0:02:08.9]} 21... a5 {[%clk 0:02:32]} 22. Bb5 {[%clk 0:01:56.9]}
22... Re7 {[%clk 0:02:31.5]} 23. Rf1 {[%clk 0:01:35.8]} 23... Qf4 {[%clk
0:02:22.7]} 24. Rfe1 {[%clk 0:01:24.4]} 24... h5 {[%clk 0:02:17.4]} 25. Qd1
{[%clk 0:01:19.7]} 25... c4 {[%clk 0:02:11.3]} 26. Qd4 {[%clk 0:01:14]} 26...
Qg3 {[%clk 0:01:27.3]} 27. Rf1 {[%clk 0:01:12.7]} 27... Nd3 {[%clk 0:01:18.5]}
28. Kh1 {[%clk 0:00:49.8]} 28... Nf4 {[%clk 0:01:10.7]} 29. Qf2 {[%clk
0:00:39.2]} 29... Qxf2 {[%clk 0:01:08.8]} 30. Rxf2 {[%clk 0:00:40.1]} 30... Nd3
{[%clk 0:01:08.5]} 31. Rd2 {[%clk 0:00:40.6]} 31... Ne5 {[%clk 0:01:06.9]} 32.
Rd4 {[%clk 0:00:40.9]} 32... c6 {[%clk 0:01:06.5]} 33. Ba6 {[%clk 0:00:25.7]}
33... Ra7 {[%clk 0:01:02.9]} 34. Bxc4 {[%clk 0:00:24.2]} 34... c5 {[%clk
0:01:02.8]} 35. Rxd6 {[%clk 0:00:24.1]} 35... Nxc4 {[%clk 0:01:02.5]} 36. Rd5
{[%clk 0:00:24.7]} 36... f6 {[%clk 0:00:57.7]} 37. Rxc5 {[%clk 0:00:23.8]} 37...
Nxb2 {[%clk 0:00:56.7]} 38. Rc6 {[%clk 0:00:18.3]} 38... Kg7 {[%clk 0:00:56.1]}
39. Rc5 {[%clk 0:00:14.7]} 39... Nxa4 {[%clk 0:00:49.9]} 40. Rxg5+ {[%clk
0:00:14.5]} 40... fxg5 {[%clk 0:00:48.9]} 41. Rxb8 {[%clk 0:00:15.4]} 41... Nxc3
{[%clk 0:00:49.3]} 42. Rc8 {[%clk 0:00:15.2]} 42... Ne2 {[%clk 0:00:47.7]} 43.
Rc5 {[%clk 0:00:13.4]} 43... Kf6 {[%clk 0:00:47.2]} 44. Rc6+ {[%clk 0:00:12.6]}
44... Ke5 {[%clk 0:00:47]} 45. Rc5+ {[%clk 0:00:12.3]} 45... Kf4 {[%clk
0:00:45.6]} 46. Rf5+ {[%clk 0:00:12.1]} 46... Ke3 {[%clk 0:00:45.7]} 47. Rxg5
{[%clk 0:00:11]} 47... a4 {[%clk 0:00:46.6]} 48. e5 {[%clk 0:00:10.3]} 48... a3
{[%clk 0:00:46.7]} 49. e6 {[%clk 0:00:08]} 49... a2 {[%clk 0:00:47.1]} 50. Re5+
{[%clk 0:00:06.8]} 50... Kf2 {[%clk 0:00:47.3]} 0-1

[Event "*** Titled Tuesday Blitz"]
[Site "Chess.com"]
[Date "2020.04.28"]
[Round "7"]
[White "ZarinaShafigullina"]
[Black "Megagigahiper3345"]
[Result "0-1"]
[WhiteElo "2211"]
[BlackElo "2461"]
[TimeControl "180+1"]
[EndTime "11:18:32 PDT"]
[Termination "Megagigahiper3345 won by resignation"]

1. d4 {[%clk 0:03:00.9]} 1... Nf6 {[%clk 0:02:52.4]} 2. Nf3 {[%clk 0:03:01.8]}
2... b6 {[%clk 0:02:50.1]} 3. g3 {[%clk 0:03:02.7]} 3... Bb7 {[%clk 0:02:49.3]}
4. Bg2 {[%clk 0:03:03.6]} 4... g6 {[%clk 0:02:49.4]} 5. O-O {[%clk 0:03:03.9]}
5... Bg7 {[%clk 0:02:40.9]} 6. c4 {[%clk 0:03:04.1]} 6... O-O {[%clk 0:02:40.6]}
7. Nc3 {[%clk 0:03:04.6]} 7... Ne4 {[%clk 0:02:34.7]} 8. Qc2 {[%clk 0:02:59.4]}
8... Nxc3 {[%clk 0:02:31.7]} 9. Qxc3 {[%clk 0:02:59.3]} 9... c5 {[%clk
0:02:30.4]} 10. Qd3 {[%clk 0:02:45.1]} 10... cxd4 {[%clk 0:02:22.8]} 11. Nxd4
{[%clk 0:02:45.2]} 11... Bxg2 {[%clk 0:02:22.6]} 12. Kxg2 {[%clk 0:02:45.8]}
12... Na6 {[%clk 0:02:22.1]} 13. Rd1 {[%clk 0:02:35.5]} 13... Nc5 {[%clk
0:02:16.9]} 14. Qf3 {[%clk 0:02:35.3]} 14... Rc8 {[%clk 0:02:11.2]} 15. Nb5
{[%clk 0:02:18.8]} 15... a6 {[%clk 0:01:57.3]} 16. Nc3 {[%clk 0:02:18.9]} 16...
Ne6 {[%clk 0:01:41.8]} 17. Qb7 {[%clk 0:01:42.4]} 17... Bxc3 {[%clk 0:01:12.1]}
18. bxc3 {[%clk 0:01:42.1]} 18... Nc5 {[%clk 0:01:10.8]} 19. Qd5 {[%clk
0:01:38.8]} 19... Qc7 {[%clk 0:01:08.7]} 20. Bh6 {[%clk 0:01:33.4]} 20... Rfd8
{[%clk 0:01:07.7]} 21. Rd4 {[%clk 0:01:25.1]} 21... Qc6 {[%clk 0:01:00.2]} 22.
Rad1 {[%clk 0:01:14]} 22... d6 {[%clk 0:00:56.7]} 23. Bg5 {[%clk 0:01:07]} 23...
Qxd5+ {[%clk 0:00:54.5]} 24. cxd5 {[%clk 0:01:05.4]} 24... Rd7 {[%clk
0:00:51.6]} 25. Rb1 {[%clk 0:01:02.9]} 25... b5 {[%clk 0:00:41.7]} 26. c4 {[%clk
0:01:01.8]} 26... f6 {[%clk 0:00:40.9]} 27. Bd2 {[%clk 0:00:59.3]} 27... Rb7
{[%clk 0:00:20.5]} 28. Bb4 {[%clk 0:00:47.5]} 28... Nd7 {[%clk 0:00:18.8]} 29.
Ba3 {[%clk 0:00:38.3]} 29... Rcb8 {[%clk 0:00:15.2]} 30. cxb5 {[%clk 0:00:38]}
30... Rxb5 {[%clk 0:00:15.8]} 31. Rdb4 {[%clk 0:00:34.9]} 31... Rxb4 {[%clk
0:00:14.9]} 32. Rxb4 {[%clk 0:00:35.5]} 32... Rxb4 {[%clk 0:00:14.6]} 33. Bxb4
{[%clk 0:00:36.1]} 33... f5 {[%clk 0:00:15.2]} 34. f3 {[%clk 0:00:34.8]} 34...
Nf6 {[%clk 0:00:15.3]} 35. Kf2 {[%clk 0:00:29.4]} 35... Nxd5 {[%clk 0:00:15.4]}
36. Bd2 {[%clk 0:00:29.2]} 36... Kf7 {[%clk 0:00:15.8]} 37. e4 {[%clk
0:00:29.1]} 37... fxe4 {[%clk 0:00:16.7]} 38. fxe4 {[%clk 0:00:29.3]} 38... Nf6
{[%clk 0:00:17.4]} 39. Ke3 {[%clk 0:00:25.8]} 39... Ng4+ {[%clk 0:00:16.9]} 40.
Kd4 {[%clk 0:00:26.2]} 40... Nxh2 {[%clk 0:00:16.6]} 41. Kd5 {[%clk 0:00:24.5]}
41... Nf3 {[%clk 0:00:15.8]} 42. Be1 {[%clk 0:00:24.3]} 42... Nxe1 {[%clk
0:00:15]} 43. Kc6 {[%clk 0:00:24.2]} 43... Nd3 {[%clk 0:00:13.5]} 44. Kb6 {[%clk
0:00:23]} 44... h5 {[%clk 0:00:14.1]} 45. a4 {[%clk 0:00:21.6]} 45... Nc5 {[%clk
0:00:14.2]} 0-1

[Event "*** Titled Tuesday Blitz"]
[Site "Chess.com"]
[Date "2020.04.28"]
[Round "7"]
[White "GMHess"]
[Black "AlexTriapishko"]
[Result "1-0"]
[WhiteElo "2893"]
[BlackElo "2745"]
[TimeControl "180+1"]
[EndTime "11:18:33 PDT"]
[Termination "GMHess won on time"]

1. d4 {[%clk 0:03:00.9]} 1... Nf6 {[%clk 0:02:59.7]} 2. c4 {[%clk 0:03:00]} 2...
e6 {[%clk 0:02:58.1]} 3. Nc3 {[%clk 0:02:58.9]} 3... Bb4 {[%clk 0:02:56.4]} 4.
Qc2 {[%clk 0:02:58.9]} 4... d5 {[%clk 0:02:55.5]} 5. a3 {[%clk 0:02:56.4]} 5...
Bxc3+ {[%clk 0:02:52.9]} 6. Qxc3 {[%clk 0:02:57.3]} 6... dxc4 {[%clk 0:02:53.3]}
7. Qxc4 {[%clk 0:02:56.1]} 7... b6 {[%clk 0:02:53.9]} 8. Bg5 {[%clk 0:02:55.2]}
8... Ba6 {[%clk 0:02:50.8]} 9. Qa4+ {[%clk 0:02:41.8]} 9... Qd7 {[%clk
0:02:50.1]} 10. Qxd7+ {[%clk 0:02:21.7]} 10... Nbxd7 {[%clk 0:02:51]} 11. Nf3
{[%clk 0:02:13.9]} 11... O-O {[%clk 0:02:49]} 12. g3 {[%clk 0:02:13.3]} 12... c5
{[%clk 0:02:47.1]} 13. Bg2 {[%clk 0:02:13.4]} 13... Rac8 {[%clk 0:02:39.6]} 14.
b4 {[%clk 0:01:58.9]} 14... Ne4 {[%clk 0:02:29.2]} 15. Be3 {[%clk 0:01:45.6]}
15... Nc3 {[%clk 0:02:22.8]} 16. dxc5 {[%clk 0:01:25.8]} 16... bxc5 {[%clk
0:02:20.4]} 17. Bd2 {[%clk 0:00:58.8]} 17... Ne4 {[%clk 0:00:41.5]} 18. Ne5
{[%clk 0:00:35.8]} 18... Nxe5 {[%clk 0:00:17.8]} 19. Bxe4 {[%clk 0:00:34.7]}
19... Nc4 {[%clk 0:00:18.4]} 20. Bc3 {[%clk 0:00:26.7]} 20... Nd6 {[%clk
0:00:18.4]} 21. Bf3 {[%clk 0:00:23.3]} 21... Nb5 {[%clk 0:00:18.4]} 22. Bb2
{[%clk 0:00:18.8]} 22... c4 {[%clk 0:00:15.1]} 23. O-O {[%clk 0:00:13.3]} 23...
c3 {[%clk 0:00:15.5]} 24. Bc1 {[%clk 0:00:13.7]} 24... Nd4 {[%clk 0:00:16.1]}
25. Kg2 {[%clk 0:00:10.5]} 25... Nxe2 {[%clk 0:00:09.6]} 26. Be3 {[%clk
0:00:08.7]} 26... c2 {[%clk 0:00:09.4]} 27. Rfe1 {[%clk 0:00:08.1]} 27... Nc3
{[%clk 0:00:08.6]} 28. Rec1 {[%clk 0:00:06.5]} 28... Ne2 {[%clk 0:00:04.2]} 29.
Re1 {[%clk 0:00:06.6]} 29... Nc3 {[%clk 0:00:03]} 30. a4 {[%clk 0:00:07]} 30...
Nd5 {[%clk 0:00:02.7]} 31. b5 {[%clk 0:00:06.5]} 31... Bb7 {[%clk 0:00:02.5]}
32. Bxa7 {[%clk 0:00:06.3]} 32... Rc4 {[%clk 0:00:02]} 33. a5 {[%clk 0:00:05.3]}
33... Ra8 {[%clk 0:00:02.5]} 34. b6 {[%clk 0:00:05.1]} 34... g6 {[%clk
0:00:01.9]} 35. a6 {[%clk 0:00:05.4]} 35... Bc6 {[%clk 0:00:01.8]} 36. b7 {[%clk
0:00:05.2]} 1-0